bitfinex-derivatives/quotes_ETHF0:USTF0_20250316
["timestamp","ask_amount","ask_price","bid_price","bid_amount"]
[1742127410813,1.06615,1875.9,1875.8,1.06615]
[1742127411407,1.4563,1875.9,1875.8,1.06615]
[1742127411908,0.00798956,1876.0,1875.9,1.06613]
[1742127412307,1.07405956,1876.0,1875.9,1.06613]
[1742127412505,0.00798956,1876.0,1875.9,1.06613]
[1742127412707,0.00798956,1876.0,1875.9,8.17893]
[1742127413009,3.2078,1876.5,1876.0,2.66519]
[1742127413204,2.49657,1876.4,1876.2,1.06593]
[1742127413412,1.4307,1876.3,1876.2,1.06593]
[1742127413707,3.2078,1876.5,1876.4,1.06584]
[1742127415011,4.6385,1876.5,1876.4,2.38674]
[1742127415415,3.2078,1876.5,1876.4,2.38674]
[1742127416118,4.5529,1876.5,1876.4,2.38674]
[1742127416826,4.5529,1876.5,1876.3,0.00798956]
[1742127417419,4.5529,1876.5,1876.4,1.06584]
[1742127417612,4.5529,1876.5,1876.4,2.52684]
[1742127419919,1.3451,1876.5,1876.4,3.20434]
[1742127420413,0.00798956,1876.6,1876.5,1.06579]
[1742127420617,0.00798956,1876.6,1876.5,2.38639]
[1742127420807,1.39098956,1876.6,1876.5,2.38639]
[1742127421020,0.00798956,1876.6,1876.5,2.38639]
[1742127421216,5.826,1876.9,1876.5,2.38639]
[1742127421522,2.0938,1877.1,1877.0,1.0655]
[1742127421707,0.7108,1877.1,1877.0,1.0655]
[1742127422323,3.2078,1877.3,1877.2,1.06539]
[1742127423521,8.32507956,1877.4,1877.2,1.06539]
[1742127424422,8.32508956,1877.4,1877.2,1.06538]
[1742127424924,4.27315,1877.3,1877.1,1.06541]
[1742127425317,3.2078,1877.3,1876.9,1.3231]
[1742127425512,1.06556,1876.9,1876.8,0.6775]
[1742127425809,1.06556,1876.9,1876.8,1.06562]
[1742127426317,4.27336,1876.9,1876.6,1.411]
[1742127426611,1.06562,1876.8,1876.6,2.47668]
[1742127426816,0.6993,1876.8,1876.7,1.06567]
[1742127427119,1.76492,1876.8,1876.7,1.06567]
[1742127427319,1.76492,1876.8,1876.6,2.47669]
[1742127427523,0.6993,1876.8,1876.3,0.00798956]
[1742127427720,3.2078,1876.7,1876.6,1.06573]
[1742127427922,3.2078,1876.7,1876.4,1.0658]
[1742127428118,0.6993,1876.8,1876.7,1.06567]
[1742127428327,3.2078,1876.9,1876.5,0.6898]
[1742127428526,3.2078,1876.9,1876.8,1.06562]
[1742127429509,4.27342,1876.9,1876.7,2.50765]
[1742127429708,1.06562,1876.8,1876.7,1.442]
[1742127429913,1.06562,1876.8,1876.7,2.50767]
[1742127430823,1.06562,1876.8,1876.7,1.442]
[1742127431013,3.2078,1876.9,1876.7,1.442]
[1742127431220,4.2734,1876.9,1876.7,2.50765]
[1742127431426,1.06562,1876.8,1876.7,1.442]
[1742127431611,3.2078,1876.9,1876.8,1.06562]
[1742127431816,3.2078,1876.9,1876.7,1.442]
[1742127432020,1.06562,1876.8,1876.7,1.442]
[1742127432723,1.06579,1876.5,1876.4,1.06581]
[1742127432923,1.06579,1876.5,1876.4,1.4022]
[1742127433826,4.27359,1876.5,1876.4,1.4022]
[1742127434029,1.06575,1876.6,1876.4,2.468]
[1742127434220,3.8973,1876.7,1876.6,1.06573]
[1742127434726,3.2078,1876.7,1876.6,1.06573]
[1742127434921,3.2078,1876.7,1876.6,1.74063]
[1742127435527,3.2078,1876.7,1876.6,2.40803]
[1742127435831,0.7275,1877.1,1877.0,1.0655]
[1742127436234,1.79295,1877.1,1876.8,1.4189]
[1742127436625,1.79295,1877.1,1876.9,1.06556]
[1742127436830,0.7275,1877.1,1876.8,1.4189]
[1742127437029,0.7275,1877.1,1876.9,1.06556]
[1742127437231,1.79298,1877.1,1876.9,1.06556]
[1742127437431,1.79298,1877.1,1877.0,1.0655]
[1742127438242,0.7275,1877.1,1877.0,1.0655]
[1742127438739,1.0655,1877.0,1876.9,1.06552]
[1742127439137,1.0655,1877.0,1876.8,1.4189]
[1742127439138,1.79299,1877.1,1877.0,1.0655]
[1742127439640,1.06554,1877.0,1876.9,1.06555]
[1742127439938,0.7275,1877.1,1876.8,1.4189]
[1742127440235,1.06551,1877.0,1876.9,1.06556]
[1742127440439,2.45841,1877.0,1876.9,1.06556]
[1742127440632,1.3929,1877.0,1876.8,1.4189]
[1742127440940,1.3929,1876.9,1876.6,0.6749]
[1742127441137,1.06573,1876.6,1876.5,2.41764]
[1742127441338,4.27353,1876.6,1876.4,1.72801]
[1742127441538,1.3929,1876.5,1876.4,3.07991]
[1742127442244,3.2078,1876.6,1876.5,1.06579]
[1742127442435,3.2078,1876.6,1876.5,2.41769]
[1742127442631,0.6893,1876.8,1876.5,1.3519]
[1742127442836,2.0822,1876.8,1876.7,1.06567]
[1742127443036,3.14785,1876.8,1876.6,2.41759]
[1742127443234,1.3929,1876.7,1876.6,2.41759]
[1742127443639,2.45857,1876.7,1876.6,2.41759]
[1742127443841,1.06574,1876.6,1876.4,1.72803]
[1742127444038,2.50914,1876.6,1876.4,3.11253]
[1742127444544,1.4434,1876.5,1876.4,3.11253]
[1742127444845,1.4434,1876.5,1876.4,1.72803]
[1742127448741,3.2078,1876.7,1876.4,0.6622]
[1742127448936,3.2078,1876.7,1876.6,1.06573]
[1742127449343,3.2078,1876.9,1876.7,1.06567]
[1742127449543,3.2078,1876.9,1876.8,1.77352]
[1742127449738,7.2249,1877.0,1876.9,1.06556]
[1742127449938,1.3989,1877.0,1876.9,1.06556]
[1742127451345,1.3989,1877.0,1876.8,0.7079]
[1742127451650,2.46445,1877.0,1876.8,1.0656]
[1742127451848,0.6641,1876.9,1876.8,1.0656]
[1742127452050,2.0753,1876.9,1876.8,1.0656]
[1742127452950,3.14086,1876.9,1876.8,1.0656]
[1742127453149,1.06563,1876.8,1876.7,1.06566]
[1742127453446,2.41906,1876.8,1876.7,1.06567]
[1742127453647,2.0516,1876.8,1876.7,1.06567]
[1742127453847,3.11722,1876.8,1876.6,0.6985]
[1742127454049,1.3534,1876.7,1876.6,1.76423]
[1742127454753,2.41907,1876.7,1876.6,0.6985]
[1742127454942,1.06577,1876.6,1876.4,3.2078]
[1742127455137,3.11677,1876.6,1876.4,4.2736]
[1742127455351,3.11677,1876.6,1876.5,1.06579]
[1742127455651,1.76337,1876.6,1876.5,1.06579]
[1742127455949,1.06579,1876.5,1876.4,4.27363]
[1742127456144,1.06579,1876.5,1876.3,0.71518956]
[1742127456145,3.2078,1876.5,1876.3,0.71518956]
[1742127456449,3.2078,1876.5,1876.3,1.78104956]
[1742127456638,1.06584,1876.4,1876.3,1.78104956]
[1742127458145,1.06584,1876.4,1876.3,0.71518956]
[1742127458351,1.78284,1876.4,1876.3,0.00798956]
[1742127459548,1.06613,1875.9,1875.8,15.05367994]
[1742127459745,3.2078,1876.0,1875.6,4.5731]
[1742127459952,4.2739,1876.0,1875.9,1.06613]
[1742127460351,1.06614,1875.9,1875.8,1.06615]
[1742127460649,3.2078,1876.0,1875.7,2.38971]
[1742127460850,1.06613,1875.9,1875.8,1.06618]
[1742127461145,1.06619,1875.8,1875.7,1.33148956]
[1742127461351,4.27399,1875.8,1875.7,1.33148956]
[1742127461553,4.27399,1875.8,1875.7,0.00798956]
[1742127463050,4.98429,1875.8,1875.7,0.00798956]
[1742127464645,6.58367,1875.8,1875.3,1.74155]
[1742127464850,3.2078,1875.6,1875.3,1.74155]
[1742127465052,1.06641,1875.4,1875.3,0.6751]
[1742127465253,3.2078,1875.4,1875.2,1.4413]
[1742127465447,1.06648,1875.3,1875.2,1.4413]
[1742127466040,3.2078,1875.4,1874.9,0.7125]
[1742127466245,1.06657,1875.2,1875.1,1.4413]
[1742127467556,4.27437,1875.2,1875.1,1.4413]
[1742127467853,1.0666,1875.1,1874.9,2.46905]
[1742127468256,1.0666,1875.1,1875.0,1.4051]
[1742127468556,3.2078,1875.2,1875.0,1.4051]
[1742127468757,1.06663,1875.1,1874.9,1.77918]
[1742127468948,3.2078,1875.2,1874.9,3.18428]
[1742127469143,3.2078,1875.0,1874.7,1.0668]
[1742127469359,1.78934,1874.9,1874.7,2.4719]
[1742127469548,1.78934,1874.9,1874.7,1.4051]
[1742127469549,1.06675,1874.8,1874.7,1.4051]
[1742127469744,3.2078,1874.8,1874.7,1.4051]
[1742127469949,3.2078,1874.8,1874.7,2.47191]
[1742127470151,4.27455,1874.8,1874.7,1.4051]
[1742127470345,1.4461,1874.8,1874.7,2.47191]
[1742127471049,3.21578956,1875.0,1874.9,1.0667]
[1742127471254,0.00798956,1875.0,1874.7,1.4051]
[1742127471450,0.00798956,1875.0,1874.9,1.0667]
[1742127471659,5.826,1875.7,1875.0,2.66655]
[1742127471660,4.6235,1875.7,1875.0,2.66655]
[1742127471962,1.06638,1875.5,1875.3,1.06643]
[1742127472163,1.06633,1875.6,1875.4,2.46927]
[1742127472458,1.06636,1875.5,1875.4,1.4029]
[1742127473056,1.07432956,1875.6,1875.4,2.46927]
[1742127473555,0.00798956,1875.6,1875.4,1.4029]
[1742127473762,3.2078,1875.5,1875.3,1.07442956]
[1742127473949,0.6839,1875.4,1875.3,1.07442956]
[1742127474259,0.6839,1875.4,1875.2,1.06653]
[1742127474460,4.97461,1875.3,1875.2,1.06653]
[1742127474655,3.9081,1875.3,1875.2,1.06653]
[1742127474855,4.97457,1875.3,1875.1,1.06654]
[1742127475056,3.9081,1875.3,1875.2,1.06653]
[1742127475366,4.97457,1875.3,1875.2,1.06653]
[1742127475565,1.06656,1875.2,1875.1,1.06658]
[1742127475763,4.97461,1875.3,1875.1,1.06658]
[1742127475962,4.97461,1875.3,1875.2,1.06653]
[1742127476159,3.9081,1875.3,1875.2,1.06653]
[1742127477287,0.6839,1875.4,1875.3,1.06647]
[1742127478170,1.75031,1875.4,1875.3,1.06647]
[1742127478376,0.6839,1875.4,1875.3,1.06647]
[1742127478683,0.6839,1875.4,1874.9,3.2078]
[1742127478986,1.0665,1875.3,1875.2,1.06652]
[1742127479485,4.95816,1875.4,1875.3,1.06647]
[1742127479678,1.75036,1875.4,1875.3,1.06647]
[1742127479874,0.6839,1875.4,1875.3,1.06647]
[1742127480279,3.21578956,1875.6,1875.5,1.06636]
[1742127482884,4.28208956,1875.6,1875.5,1.06636]
[1742127483383,3.21578956,1875.6,1875.5,1.06636]
[1742127484686,3.2078,1876.0,1875.9,1.06613]
[1742127485080,2.66476,1876.4,1875.9,6.55724]
[1742127485081,1.06585,1876.4,1875.9,6.55724]
[1742127485379,4.95452,1876.5,1876.1,2.66503]
[1742127485585,0.6809,1876.5,1876.4,1.06584]
[1742127486288,1.74669,1876.5,1876.4,1.06584]
[1742127486583,0.6809,1876.5,1876.4,1.06584]
[1742127486982,1.74669,1876.5,1876.4,1.06584]
[1742127487287,0.6809,1876.5,1876.4,1.06584]
[1742127488182,0.00798956,1876.6,1876.5,1.06579]
[1742127488382,3.8709,1876.9,1876.8,1.06562]
[1742127488582,3.2078,1877.3,1877.2,1.06539]
[1742127490287,4.5566,1877.3,1877.2,1.06539]
[1742127492283,1.3488,1877.3,1877.2,1.06539]
[1742127492487,0.00798956,1877.4,1877.3,1.06533]
[1742127493087,0.00798956,1877.4,1877.3,2.43993]
[1742127495485,1.07326956,1877.4,1877.3,1.3746]
[1742127495690,1.39238956,1877.4,1877.3,2.43993]
[1742127496391,2.45766956,1877.4,1877.2,1.77656]
[1742127496587,1.39238956,1877.4,1877.2,1.06536]
[1742127496891,3.2078,1877.3,1877.2,1.06539]
[1742127497399,1.3844,1877.3,1877.2,1.06539]
[1742127498088,4.5922,1877.3,1877.2,1.06539]
[1742127499096,5.65753,1877.3,1877.2,1.06539]
[1742127499292,4.5922,1877.3,1877.2,1.06539]
[1742127499899,5.65753,1877.3,1877.2,1.06539]
[1742127501001,1.06545,1877.1,1877.0,1.0655]
[1742127501195,3.2078,1877.1,1876.8,0.6599]
[1742127501499,3.2078,1876.9,1876.8,1.72552]
[1742127501699,3.2078,1876.9,1876.8,3.14032]
[1742127501899,4.6275,1876.9,1876.8,3.14032]
[1742127502904,4.6275,1876.9,1876.8,2.48042]
[1742127503110,5.69311,1876.9,1876.5,7.25063]
[1742127503297,4.6275,1876.9,1876.6,4.07909]
[1742127503604,3.2078,1876.9,1876.8,1.06562]
[1742127503903,5.69306,1876.9,1876.8,1.06562]
[1742127504097,4.6275,1876.9,1876.8,1.06562]
[1742127504991,5.826,1877.2,1876.8,2.66405]
[1742127505197,5.826,1877.2,1877.1,1.06545]
[1742127505409,7.23,1877.2,1877.1,1.06545]
[1742127505702,8.29539,1877.2,1877.0,1.06546]
[1742127505905,8.29539,1877.2,1876.9,1.328]
[1742127506203,1.404,1877.2,1877.1,1.06545]
[1742127506500,4.6118,1877.2,1877.1,1.06545]
[1742127507992,5.67719,1877.2,1877.1,1.06545]
[1742127508211,4.6118,1877.2,1877.1,1.06545]
[1742127509693,1.404,1877.2,1877.1,1.06545]
[1742127509902,0.00798956,1877.4,1877.3,1.06533]
[1742127510103,9.56e-06,1877.4,1877.3,4.27313]
[1742127510507,9.56e-06,1877.4,1877.3,4.94743]
[1742127516708,9.56e-06,1877.4,1877.3,7.44743]
[1742127521315,3.2078,1878.7,1878.6,1.0646]
[1742127521622,4.5775,1878.7,1878.6,1.0646]
[1742127522118,5.2604,1878.7,1878.6,1.0646]
[1742127525420,1.0646,1878.6,1878.5,0.00798956]
[1742127525625,2.4473,1878.6,1878.4,1.06467]
[1742127525914,3.2078,1878.5,1878.4,1.06467]
[1742127526119,4.6679,1878.5,1878.4,1.06467]
[1742127526507,0.00798956,1878.8,1878.7,1.06454]
[1742127527222,0.00798956,1878.8,1878.6,1.06456]
[1742127527416,3.2078,1878.7,1878.6,1.06456]
[1742127528021,4.6679,1878.7,1878.6,1.06456]
[1742127528919,5.3447,1878.7,1878.6,1.06456]
[1742127529317,1.06462,1878.6,1878.3,0.00798956]
[1742127529523,0.7107,1878.5,1878.4,1.06471]
[1742127530819,2.0842,1878.5,1878.4,1.06471]
[1742127531020,5.292,1878.5,1878.3,0.00798956]
[1742127531214,1.3735,1878.4,1878.3,1.07275956]
[1742127532922,2.43821,1878.4,1878.3,0.00798956]
[1742127533221,1.06484,1878.2,1878.1,1.06486]
[1742127533425,3.2078,1878.2,1878.1,1.06486]
[1742127533715,3.2078,1878.2,1877.8,1.3652]
[1742127533921,3.2078,1878.0,1877.9,1.06498]
[1742127534323,4.5496,1878.0,1877.9,1.06498]
[1742127534721,5.61454,1878.0,1877.9,1.06498]
[1742127534926,4.5496,1878.0,1877.9,1.06498]
[1742127535329,5.61454,1878.0,1877.9,1.06498]
[1742127535622,1.06499,1877.9,1877.8,1.07299956]
[1742127535828,1.3861,1877.9,1877.8,1.07303956]
[1742127536213,2.0457,1877.9,1877.8,1.07303956]
[1742127536918,3.11069,1877.9,1877.8,1.07303956]
[1742127537123,2.0457,1877.9,1877.8,1.07303956]
[1742127538228,1.3861,1877.9,1877.8,4.28083956]
[1742127538420,1.3861,1877.9,1877.8,4.94103956]
[1742127538724,0.6929,1878.1,1878.0,1.06494]
[1742127538926,2.097,1878.1,1878.0,1.06494]
[1742127539229,1.4041,1878.1,1878.0,1.06494]
[1742127540726,1.41553618,1878.1,1878.0,1.06494]
[1742127543325,3.2078,1878.7,1878.6,1.0646]
[1742127543525,0.6622,1878.7,1878.6,1.0646]
[1742127543830,3.87,1878.7,1878.6,1.0646]
[1742127544132,3.87,1878.7,1878.3,7.0848]
[1742127544332,1.06462,1878.6,1878.4,1.06471]
[1742127544524,1.06463,1878.6,1878.3,3.2078]
[1742127544730,1.4602,1878.5,1878.4,1.06466]
[1742127545928,1.06475,1878.4,1878.3,1.06477]
[1742127546134,1.06475,1878.4,1878.0,2.66234]
[1742127546135,0.705,1878.4,1878.2,1.06481]
[1742127546435,5.3579,1878.3,1878.2,1.06481]
[1742127546730,1.06484,1878.2,1878.1,1.06488]
[1742127546925,2.52504,1878.2,1878.1,1.06488]
[1742127547127,1.06489,1878.1,1878.0,1.06491]
[1742127547329,4.5763,1878.1,1877.8,0.00798956]
[1742127547631,1.74898,1878.0,1877.9,1.06499]
[1742127547827,2.0525,1878.0,1877.8,0.00798956]
[1742127548027,2.0555,1877.9,1877.8,1.07300956]
[1742127549028,3.12049,1877.9,1877.8,1.07300956]
[1742127549229,3.12049,1877.9,1877.8,0.00798956]
[1742127549523,5.2633,1877.9,1877.8,1.07303956]
[1742127549833,3.12049,1877.9,1877.8,0.00798956]
[1742127550230,6.32829,1877.9,1877.8,0.00798956]
[1742127552336,6.32829,1877.9,1877.8,1.07303956]
[1742127552533,6.32829,1877.9,1877.8,0.00798956]
[1742127553635,1.06525,1877.5,1877.4,2.49304]
[1742127554237,2.45405,1877.5,1877.4,2.49304]
[1742127555537,2.45405,1877.5,1877.4,1.4278]
[1742127555739,1.06538,1877.3,1877.2,1.06539]
[1742127556033,1.06538,1877.3,1877.2,1.4278]
[1742127556632,1.06539,1877.2,1877.1,1.06544]
[1742127557335,1.06545,1877.1,1877.0,1.4221]
[1742127557537,3.17245,1877.1,1877.0,1.4221]
[1742127558037,3.17245,1877.1,1877.0,2.4876]
[1742127558626,2.107,1877.1,1877.0,2.4876]
[1742127558826,1.06545,1877.1,1877.0,1.4221]
[1742127559133,2.51235,1877.1,1877.0,1.4221]
[1742127559532,2.51235,1877.1,1877.0,2.4876]
[1742127559729,2.51235,1877.1,1877.0,1.4221]
[1742127560336,1.4469,1877.1,1876.6,3.9341]
[1742127560531,1.06564,1876.8,1876.7,2.51462]
[1742127560733,1.0656,1876.9,1876.8,1.06559]
[1742127561335,2.4148,1876.9,1876.8,1.06559]
[1742127561733,1.3492,1876.9,1876.8,1.06559]
[1742127561935,2.41476,1876.9,1876.8,1.06559]
[1742127563041,2.41476,1876.9,1876.7,2.51465]
[1742127563042,1.06562,1876.8,1876.7,2.51465]
[1742127563239,2.50822,1876.8,1876.7,2.51465]
[1742127563543,1.4426,1876.8,1876.7,2.51465]
[1742127564539,1.06567,1876.7,1876.6,4.2735]
[1742127564739,1.06582,1876.5,1876.4,1.06583]
[1742127565436,1.45058956,1876.6,1876.4,1.06583]
[1742127565643,1.45058956,1876.6,1876.5,2.42629]
[1742127565844,0.00798956,1876.6,1876.5,6.30129]
[1742127566040,1.76659,1877.1,1876.6,2.66425]
[1742127566248,1.06552,1877.0,1876.7,1.3605]
[1742127566442,2.42562,1877.0,1876.9,1.06554]
[1742127567246,2.42562,1877.0,1876.8,1.07356956]
[1742127567447,2.42566,1876.9,1876.8,1.07356956]
[1742127567837,1.3601,1876.9,1876.8,1.07356956]
[1742127568043,2.42566,1876.9,1876.8,0.00798956]
[1742127568439,5.63346,1876.9,1876.8,0.00798956]
[1742127569846,4.5679,1876.9,1876.8,1.07360956]
[1742127570341,4.5679,1876.9,1876.8,1.77510956]
[1742127571346,5.63346,1876.9,1876.8,1.77510956]
[1742127571748,4.5679,1876.9,1876.8,1.77510956]
[1742127572146,2.42566,1876.9,1876.8,1.77510956]
[1742127573152,2.42566,1876.9,1876.8,0.70948956]
[1742127573355,5.63346,1876.9,1876.8,0.00798956]
[1742127574351,1.06579,1876.5,1876.4,2.43591]
[1742127574553,4.27359,1876.5,1876.4,2.43591]
[1742127574751,1.06579,1876.5,1876.4,2.43591]
[1742127575652,1.0659,1876.3,1876.2,0.707]
[1742127575956,1.06598,1876.2,1876.1,1.06597]
[1742127576156,2.40368,1876.2,1876.1,2.50037]
[1742127576355,3.2078,1876.3,1876.2,1.06596]
[1742127576556,1.0659,1876.3,1876.2,1.4344]
[1742127576750,1.0659,1876.3,1876.2,2.50035]
[1742127577255,2.3969,1876.3,1876.2,2.50035]
[1742127577757,2.3969,1876.3,1876.2,1.4344]
[1742127578258,2.3969,1876.3,1876.2,2.50036]
[1742127578458,3.0924,1876.3,1876.2,2.50036]
[1742127578661,2.0265,1876.3,1876.2,2.50036]
[1742127578853,2.3969,1876.3,1876.2,2.50036]
[1742127579055,3.2078,1876.4,1876.3,1.06588]
[1742127579256,4.27367,1876.4,1876.3,1.3966]
[1742127579653,5.60467,1876.4,1876.3,1.3966]
[1742127580961,5.60467,1876.4,1876.1,1.77299]
[1742127581157,1.06596,1876.2,1876.1,0.707]
[1742127581756,1.06596,1876.2,1876.1,1.77301]
[1742127582367,2.38386,1876.2,1876.1,1.77301]
[1742127583964,2.38386,1876.2,1876.1,0.707]
[1742127584262,1.3179,1876.2,1876.1,1.77301]
[1742127584762,2.38386,1876.2,1876.1,0.707]
[1742127584962,1.3179,1876.2,1876.1,1.77301]
[1742127586963,1.3179,1876.2,1876.1,1.06601]
[1742127587160,5.59171,1876.2,1876.0,2.1754]
[1742127587465,1.3179,1876.2,1876.1,1.06601]
[1742127587656,1.74985,1876.3,1875.8,3.2078]
[1742127587857,0.6839,1876.3,1876.2,1.06596]
[1742127588358,1.7498,1876.3,1876.2,1.06596]
[1742127588566,0.6839,1876.3,1876.2,1.06596]
[1742127589066,3.2078,1876.4,1876.3,1.0659]
[1742127589457,4.27364,1876.4,1876.2,1.06592]
[1742127589658,4.27364,1876.4,1876.3,2.4839]
[1742127589659,3.2078,1876.4,1876.3,2.4839]
[1742127590269,4.27364,1876.4,1876.3,1.418]
[1742127590464,3.2078,1876.4,1876.1,1.06599]
[1742127590769,1.06596,1876.2,1876.1,1.06599]
[1742127591068,1.06594,1876.3,1876.1,1.06599]
[1742127591371,1.06596,1876.2,1876.0,2.48403]
[1742127591662,5.8727,1876.2,1875.8,1.78647]
[1742127591959,1.06613,1875.9,1875.8,1.418]
[1742127592166,3.2078,1876.0,1875.8,1.418]
[1742127592167,4.27392,1876.0,1875.9,1.06613]
[1742127592357,4.28190956,1876.0,1875.8,2.48414]
[1742127592557,3.21578956,1876.0,1875.8,1.418]
[1742127592766,4.28191956,1876.0,1875.9,1.4289]
[1742127593565,3.21578956,1876.0,1875.7,1.7411]
[1742127593763,1.06619,1875.8,1875.7,3.17]
[1742127594372,3.21578956,1876.0,1875.8,1.06618]
[1742127594565,4.28189956,1876.0,1875.9,1.06613]
[1742127594964,3.21578956,1876.0,1875.9,1.06613]
[1742127595166,4.28185956,1876.0,1875.9,1.06613]
[1742127595469,0.00798956,1876.0,1875.9,1.06613]
[1742127597367,0.00798956,1876.0,1875.9,8.14593]
[1742127599068,0.00798956,1876.0,1875.9,4.93813]
[1742127601868,0.00798956,1876.0,1875.9,8.14593]
[1742127602277,0.00798956,1876.0,1875.9,4.93813]
[1742127603279,0.00798956,1876.0,1875.9,8.14593]
[1742127604866,2.5044,1876.5,1875.9,8.14593]
[1742127604867,1.4386,1876.5,1876.4,1.06584]
[1742127605073,5.826,1876.9,1876.1,2.66494]
[1742127605074,4.27345,1876.8,1876.6,1.0657]
[1742127605273,1.06569,1876.7,1876.5,1.06578]
[1742127605466,2.4387,1876.7,1876.4,2.164]
[1742127605770,2.4387,1876.7,1876.4,3.2298]
[1742127605972,4.5808,1876.6,1876.2,4.5938]
[1742127606172,6.33019,1876.5,1876.4,0.00798956]
[1742127607062,1.06591,1876.3,1876.1,1.06601]
[1742127607267,1.06596,1876.2,1876.1,1.4412]
[1742127607467,2.43896,1876.2,1876.0,4.5928]
[1742127607764,1.373,1876.2,1876.1,1.06601]
[1742127607967,4.27373,1876.3,1876.1,2.42911]
[1742127608472,3.2078,1876.3,1876.1,1.3631]
[1742127608674,3.2078,1876.3,1876.2,1.06596]
[1742127609177,3.2078,1876.3,1876.1,1.3631]
[1742127609178,4.2737,1876.3,1876.1,2.42909]
[1742127609467,1.06596,1876.2,1876.1,1.3631]
[1742127609672,3.2078,1876.3,1876.2,1.06596]
[1742127610470,3.2078,1876.3,1876.2,2.42906]
[1742127612576,3.2078,1876.3,1876.2,1.3631]
[1742127612777,4.2737,1876.3,1876.2,2.42906]
[1742127613075,3.2078,1876.3,1876.2,2.42906]
[1742127614078,4.2737,1876.3,1876.2,2.42906]
[1742127614266,4.9517,1876.3,1876.2,2.42906]
[1742127614471,3.8858,1876.3,1876.2,2.42906]
[1742127614876,0.678,1876.3,1876.2,2.42906]
[1742127615480,1.06597,1876.2,1876.1,1.066]
[1742127615682,3.8858,1876.3,1875.8,0.6832]
[1742127615683,1.06601,1876.1,1875.8,0.6832]
[1742127615880,1.06601,1876.1,1875.9,2.51429]
[1742127616082,0.678,1876.0,1875.9,2.51429]
[1742127619076,3.2078,1876.3,1876.2,1.06596]
[1742127619682,3.2078,1876.3,1876.2,2.45656]
[1742127620978,1.346,1876.4,1876.3,1.0659]
[1742127621184,1.346,1876.4,1876.3,2.46]
[1742127621386,4.5538,1876.5,1876.4,1.06584]
[1742127621688,4.5538,1876.5,1876.4,3.18424]
[1742127621884,1.346,1876.5,1876.4,3.18424]
[1742127623384,2.41183,1876.5,1876.1,7.24781]
[1742127623586,2.41183,1876.5,1876.4,1.06584]
[1742127623987,1.346,1876.5,1876.4,1.06584]
[1742127624180,1.06584,1876.4,1876.1,3.868]
[1742127624375,3.8907,1876.3,1876.1,1.3844]
[1742127624580,3.8907,1876.3,1876.1,1.06601]
[1742127624581,2.52176,1876.2,1876.1,1.06601]
[1742127624786,1.4558,1876.2,1876.1,1.06601]
[1742127625181,2.52178,1876.2,1876.1,1.06601]
[1742127625689,1.4558,1876.2,1876.1,1.06601]
[1742127626088,1.4558,1876.2,1876.1,2.49421]
[1742127627181,3.2078,1876.4,1876.3,1.0659]
[1742127628388,1.06596,1876.3,1876.0,3.867]
[1742127628583,3.18773,1876.3,1876.2,1.06596]
[1742127629294,1.06596,1876.2,1876.1,2.47757]
[1742127629479,2.1373,1876.2,1876.1,2.47757]
[1742127630697,3.20326,1876.2,1876.1,2.47757]
[1742127631092,2.1373,1876.2,1876.1,2.47757]
[1742127632989,3.20326,1876.2,1876.1,2.47757]
[1742127633390,6.41106,1876.2,1876.1,1.06597]
[1742127635697,2.1373,1876.2,1876.1,1.06597]
[1742127635899,2.1373,1876.2,1876.1,2.48937]
[1742127636093,1.4329,1876.2,1876.1,2.48937]
[1742127636499,1.4329,1876.2,1876.1,3.15547]
[1742127636899,0.7021,1876.3,1876.2,1.06596]
[1742127637196,3.2078,1876.4,1876.3,1.0659]
[1742127637396,3.2078,1876.4,1876.3,5.6417]
[1742127637792,1.3992,1876.5,1876.4,1.06584]
[1742127637998,1.3992,1876.5,1876.4,2.48924]
[1742127638499,1.3992,1876.5,1876.4,3.15704]
[1742127638701,0.68298956,1876.7,1876.4,3.15704]
[1742127638702,0.00798956,1876.7,1876.6,1.06573]
[1742127638896,1.33108956,1876.7,1876.6,1.06573]
[1742127640008,1.06573,1876.6,1876.5,2.47155]
[1742127640299,1.74883,1876.6,1876.5,2.47155]
[1742127640793,1.74883,1876.6,1876.4,1.06584]
[1742127640794,1.0658,1876.5,1876.4,1.06584]
[1742127640993,3.1139,1876.5,1876.4,1.06584]
[1742127641797,2.0481,1876.5,1876.4,2.45724]
[1742127642503,1.3231,1876.5,1876.4,2.45724]
[1742127642705,0.6831,1876.6,1876.5,1.06579]
[1742127643002,0.6831,1876.6,1876.5,2.45719]
[1742127643503,2.1006,1876.6,1876.5,2.45719]
[1742127644797,0.00798956,1876.7,1876.6,1.06573]
[1742127644998,1.33758956,1876.7,1876.6,1.06573]
[1742127645710,0.00798956,1876.7,1876.6,1.06573]
[1742127645902,0.00798956,1876.7,1876.6,1.75803]
[1742127647809,0.00798956,1876.7,1876.6,5.62103]
[1742127648106,0.00798956,1876.7,1876.6,11.32883]
[1742127648804,9.56e-06,1876.7,1876.6,11.32883]
[1742127649005,4.662,1877.3,1877.2,1.06539]
[1742127649214,3.2078,1877.3,1877.2,1.06539]
[1742127649910,4.27313,1877.3,1877.2,1.06539]
[1742127650101,4.27313,1877.3,1877.1,2.53680956]
[1742127650411,0.7188,1877.2,1877.1,1.07340956]
[1742127660123,0.00798956,1877.4,1877.3,1.06533]
[1742127660517,1.44988956,1877.4,1877.3,1.06533]
[1742127660714,1.44988956,1877.4,1877.3,3.17683]
[1742127661219,0.00798956,1877.4,1877.3,6.38463]